Cogmind - Beta 14 @@@ ROGUE MODE // 2025.01.10 @ 19:36:08 Player: Iry-bot Result: Self-destructed Performance ------------- Evolutions (1) 500 Regions Visited (2) 400 Robots Destroyed (19) 95 Value Destroyed (364) 364 Prototype IDs (0) 0 Alien Tech Used (0) 0 Bonus (0) 0 TOTAL SCORE: 1359 Bonus ------- None Cogmind --------- Core Integrity 192/400 Matter 276/300 Energy 84/100 System Corruption 0% Temperature Warm (184) Movement Core (100) Ox1 Location -9/Materials Parts ------- > --- POWER (1) -------- (None) > --- PROPULSION (2) --- (None) > --- UTILITY (4) ------ Signal Interpreter > --- WEAPON (2) ------- Particle Cannon > --- INVENTORY (5) ---- Light Ion Engine Wheel Wheel Datajack Peak State ------------ > --- POWER ------------ Light Nuclear Core > --- PROPULSION ------- Light Treads Light Treads > --- UTILITY ---------- Small Storage Unit Sensor Array Signal Interpreter > --- WEAPON ----------- Particle Cannon Particle Cannon > --- INVENTORY -------- Ion Engine Light Ion Engine Wheel Wheel Particle Cannon Particle Cannon Grenade Launcher Datajack [Rating: 13] Favorites ----------- Power Ion Engine Engine Ion Engine Power Core Light Nuclear Core Propulsion Light Treads Treads Light Treads Utility Small Storage Unit Device Sensor Array Storage Small Storage Unit Processor Signal Interpreter Weapon Particle Cannon Energy Gun EM Pulse Gun Energy Cannon Particle Cannon Launcher Grenade Launcher Build | -11 -10 -9 ------- Run | Yrd Mat Mat Slots Evolved 2 | . . 2 Power . | . . . Propulsion . | . . . Utility 2 | . . 2 Weapon . | . . . Parts Attached 16 | 6 3 7 Power 3 | 1 1 1 Engine 2 | 1 . 1 Core 1 | . 1 . Reactor . | . . . Propulsion 3 | 2 . 1 Treads 3 | 2 . 1 Leg . | . . . Wheel . | . . . Hover . | . . . Flight . | . . . Utility 3 | 1 . 2 Device 1 | . . 1 Storage 1 | 1 . . Processor 1 | . . 1 Hackware . | . . . Protection . | . . . Artifact . | . . . Weapon 7 | 2 2 3 Energy Gun 2 | 2 . . Energy Cannon 4 | . 2 2 Ballistic Gun . | . . . Ballistic Cannon . | . . . Launcher 1 | . . 1 Special Weapon . | . . . Impact Weapon . | . . . Slashing Weapon . | . . . Piercing Weapon . | . . . Special Melee Weapon . | . . . Unidentified Prototypes . | . . . Parts Lost 10 | . . 10 Power 2 | . . 2 Propulsion 3 | . . 3 Utility 2 | . . 2 Weapon 3 | . . 3 Highest Loss Streak 10 | . . 10 To Critical Strikes . | . . . Average Slot Usage (%) 76 | . 84 66 Engine 6 | . 11 1 Core 5 | . 2 9 Treads 23 | . 28 18 Storage 12 | . 14 11 Processor 1 | . . 4 Energy Gun 4 | . 8 . Energy Cannon 20 | . 19 21 Peak Build Rating 13 | 6 11 13 Average Rating 8 | 5 8 10 On Entrance 5 | . 6 11 Naked Turns . | . . . Heaviest Build 19 | 14 18 19 Greatest Support 40 | 40 40 40 Greatest Overweight (x) 5 | 1 . 5 Average Overweight (x) . | . . . Largest Inventory Capacity 8 | 8 8 8 Average Capacity 7 | 7 8 7 Most Carried 8 | 4 8 8 Average Carried 6 | 2 6 7 Final Capacity 8 | 8 8 5 Final Carried 8 | 4 8 4 Class Distribution -------------------- 100% | Mutant Dominant Class ---------------- Mutant | -10/Materials Mutant | -9/Materials Resources | -11 -10 -9 ----------- Run | Yrd Mat Mat Matter Collected 331 | 225 65 41 Remotely . | . . . Salvage Created 434 | . 225 209 Parts 49 | . 22 27 Haulers Intercepted 1 | . 1 . Recyclers Shooed . | . . . Parts Field Recycled . | . . . Retrieved Matter . | . . . Parts Self-Destructed . | . . . Prevented . | . . . Kills | -11 -10 -9 ------- Run | Yrd Mat Mat Combat Hostiles Destroyed 11 | . 6 5 Guns 1 | . 1 . Cannons 8 | . 5 3 AOE 2 | . . 2 Classes Destroyed 8 | . 4 4 Worker 1 | . . 1 Builder 2 | . . 2 Hauler 1 | . 1 . Operator 1 | . . 1 Watcher 3 | . 1 2 Swarmer 6 | . 3 3 Grunt 4 | . 3 1 Sentry 1 | . . 1 Best Kill Streak 8 | . 4 8 Combat Bots Only 4 | . 3 4 Max Kills in Single Turn 2 | . 1 2 Gunslinging . | . . . Exploded 1 | . . 1 Melee . | . . . Uniques/NPCs Destroyed . | . . . Combat | -11 -10 -9 -------- Run | Yrd Mat Mat Hostile Shots Fired 144 | . 26 118 Missed 20 | . 5 15 Damage Taken 1254 | . 211 1043 Core 227 | . 19 208 Absorbed by Shields . | . . . Core Remaining (%) 96 | 100 92 . Volleys Fired 43 | . 21 22 Largest 2 | . 2 2 Hottest 136 | . 136 136 Shots Fired 73 | . 37 36 Gun 6 | . 6 . Cannon 63 | . 31 32 Launcher 4 | . . 4 Special . | . . . Kinetic . | . . . Thermal 63 | . 31 32 Explosive 4 | . . 4 Electromagnetic 6 | . 6 . Robot Hit Streak 9 | . 7 9 Robot Miss Streak 3 | . 2 3 Penetration Max . | . . . Secondary Targets . | . . . Shots Hit Robots 42 | . 24 18 Core Hits 24 | . 9 15 Critical Kills 2 | . 1 1 Critical Parts Destroyed . | . . . Critical Strikes 2 | . 1 1 Meltdown 2 | . 1 1 Melee Attacks . | . . . Impact . | . . . Slashing . | . . . Piercing . | . . . Sneak Attacks . | . . . Combat Hostiles . | . . . Follow-up Attacks . | . . . Damage Inflicted 1201 | . 479 722 Guns 68 | . 68 . Cannons 720 | . 411 309 Explosions 413 | . . 413 Melee . | . . . Ramming . | . . . Kinetic . | . . . Thermal 720 | . 411 309 Explosive 413 | . . 413 Electromagnetic 68 | . 68 . Impact . | . . . Slashing . | . . . Piercing . | . . . Highest Corruption . | . . . Average Corruption . | . . . Corruption Purged . | . . . Corruption Blocked . | . . . Overload Shots . | . . . Overflow Damage 6 | . 1 5 Projectiles 1 | . 1 . Explosions 5 | . . 5 Melee . | . . . Knockbacks . | . . . Impact . | . . . Kinetic . | . . . Secondary . | . . . Self-Inflicted Damage 68 | . . 68 Shots 3 | . . 3 Rammed . | . . . Targets Rammed . | . . . Kicked . | . . . Crushed . | . . . Highest Temperature 536 | . 412 536 Average Temperature 202 | . 159 255 Received Heat Transfer 291 | . 45 246 Effects 13 | . 2 11 Shutdowns 3 | . . 3 Energy Bleed 2 | . . 2 Interference 4 | . 2 2 Damage (minor) 1 | . . 1 Damage (major) 3 | . . 3 Siege Activations . | . . . Robots Corrupted . | . . . Combat Hostiles . | . . . Parts Fried . | . . . Impact Corruptions . | . . . Robots Melted 2 | . 1 1 Combat Hostiles . | . . . Parts Melted 3 | . 2 1 Heat Transferred 1295 | . 740 555 Parts Sabotaged . | . . . Parts Stolen . | . . . Parts Stripped . | . . . Power Chain Reactions . | . . . Alert | -11 -10 -9 ------- Run | Yrd Mat Mat Peak Influence 297 | . 209 297 Initial 87 | . . 87 Average 109 | . 103 152 Maximum Alert Level 1 | . 1 1 Low Security (%) 81 | 100 79 79 Level 1 18 | . 20 20 Level 2 . | . . . Level 3 . | . . . Level 4 . | . . . Level 5 . | . . . High Security . | . . . Max Security . | . . . Squads Dispatched 1 | . 1 . Investigation . | . . . Extermination . | . . . Reinforcement 1 | . 1 . Assault . | . . . Garrison . | . . . Intercept . | . . . Searches Triggered . | . . . Construction Impeded . | . . . Haulers Reinforced . | . . . Active Scanning Responses . | . . . Cargo Convoy Interrupts . | . . . Stealth | -11 -10 -9 --------- Run | Yrd Mat Mat Distress Signals . | . . . Communications Jammed . | . . . Distress Signals . | . . . Times Spotted 23 | . 9 14 Peak Tracking Total 8 | . 4 8 Tactical Retreats 2 | . . 2 Traps | -11 -10 -9 ------- Run | Yrd Mat Mat Traps Triggered 1 | . 1 . Indirectly . | . . . Trap Hack Attempts . | . . . Triggered . | . . . Disarmed . | . . . Reprogrammed . | . . . Reused . | . . . Traps Extracted . | . . . Installed . | . . . Triggered . | . . . Machines | -11 -10 -9 ---------- Run | Yrd Mat Mat Machines Disabled 2 | . 1 1 Max in Single Turn 1 | . 1 1 Machines Repaired . | . . . Machines Dismantled . | . . . Machines Sabotaged . | . . . Overloaded Fab Kills . | . . . Hacking | -11 -10 -9 --------- Run | Yrd Mat Mat Machines Accessed 4 | . 2 2 Terminals 4 | . 2 2 Fabricators . | . . . Repair Stations . | . . . Recycling Units . | . . . Scanalyzers . | . . . Garrison Access . | . . . Total Hacks 14 | . 4 10 Successful 10 | . 3 7 Failed 4 | . 1 3 Catastrophic . | . . . Database Lockouts . | . . . Manual 12 | . 4 8 Terminals 14 | . 4 10 Fabricators . | . . . Repair Stations . | . . . Recycling Units . | . . . Scanalyzers . | . . . Garrison Access . | . . . Terminal Hacks 4 | . . 4 Robot Analysis 2 | . . 2 Terminal Index 1 | . . 1 Alert Level 1 | . . 1 Fabricator Hacks . | . . . Repair Station Hacks . | . . . Recycling Unit Hacks . | . . . Scanalyzer . | . . . Garrison Access Hacks . | . . . Unauthorized Hacks 6 | . 3 3 Terminals 6 | . 3 3 Track 1 | . 1 . Botnet 4 | . 2 2 Operators 1 | . . 1 Fabricators . | . . . Repair Stations . | . . . Recycling Units . | . . . Scanalyzers . | . . . Garrison Access . | . . . Data Cores Recovered 1 | . . 1 Used 1 | . . 1 Hacking Detections 4 | . 2 2 Full Trace Events . | . . . Feedback Events . | . . . Feedback Blocked . | . . . Robot Schematics Acquired . | . . . Robots Built . | . . . Authchips . | . . . Time . | . . . Total Robot Build Rating . | . . . Part Schematics Acquired . | . . . Parts Built . | . . . Authchips . | . . . Time . | . . . Total Part Build Rating . | . . . Parts Repaired . | . . . Time . | . . . Parts Recycled . | . . . Recycled Matter . | . . . Retrieved Matter . | . . . Retrieved Components . | . . . Parts Scanalyzed . | . . . Part Schematics Acquired . | . . . Parts Damaged . | . . . Bothacking | -11 -10 -9 ------------ Run | Yrd Mat Mat Used RIF Installer . | . . . Robots Hacked . | . . . Non-combat . | . . . Combat . | . . . Robot Hacks Applied . | . . . Relay Couplers Released . | . . . Fabnet Peak Effective % . | . . . Robots Rewired . | . . . Allies Hacked . | . . . Hacks Repelled . | . . . Allies | -11 -10 -9 -------- Run | Yrd Mat Mat Total Allies . | . . . Largest Group . | . . . Highest-Rated Group . | . . . Highest-Rated Ally . | . . . Total Orders . | . . . Ally Attacks . | . . . Total Damage . | . . . Kills . | . . . Allies Corrupted . | . . . Allies Melted . | . . . Intel | -11 -10 -9 ------- Run | Yrd Mat Mat Robot Analysis Total 2 | . . 2 Derelict Logs Recovered . | . . . Drone Launches . | . . . Drone Recoveries . | . . . Exploration | -11 -10 -9 ------------- Run | Yrd Mat Mat Turns Passed 674 | 81 335 258 Spaces Moved 317 | 44 159 114 Core 8 | 2 . 6 Treads 309 | 42 159 108 Legs . | . . . Wheels . | . . . Hover . | . . . Flight . | . . . Fastest Speed 50 | 50 160 150 Average Speed 161 | 156 160 165 Slowest Speed 300 | 160 160 300 Overloaded Moves . | . . . Propulsion Burnouts . | . . . Robots Hopped . | . . . Cave-ins Triggered . | . . . Exploration Rate (%) 16 | 5 33 10 Regions Visited 2 Branch Regions . Pre-discovered Areas . | . . . Known Exits Taken . | . . . Unknown Exits Taken 2 | 1 1 . Scrap Searched . | . . . Spaces Dug . | . . . Terrain Destroyed 19 | . . 19 Melee . | . . . Projectile . | . . . AOE 19 | . . 19 Terrain Rammed . | . . . Walls Destroyed . | . . . Machines Disabled . | . . . Actions | -11 -10 -9 --------- Run | Yrd Mat Mat Total 403 | 53 203 147 Wait 15 | . 14 1 Move 315 | 43 158 114 Hop . | . . . Pick Up 9 | 4 4 1 Fast Attach 11 | 6 2 3 Attach 4 | . . 4 Detach . | . . . Swap 1 | . 1 . Drop 5 | . 3 2 Fire 43 | . 21 22 Melee . | . . . Ram . | . . . Kick . | . . . Crush . | . . . Escape Stasis . | . . . Rewire . | . . . Trap . | . . . Miscellaneous . | . . . Route ------- -11/Scrapyard -10/Materials -9/Materials History --------- Turn | Location | Event 26 | -11/Scrapyard | Discovered new exit (range 13) 82 | -11/Scrapyard | Entered Materials 306 | -10/Materials | Build established: Mutant 396 | -10/Materials | Discovered new exit (range 14) 417 | -10/Materials | Entered another Materials area 417 | -9/Materials | Evolved 2 slots: Utility x2 674 | -9/Materials | Core integrity fell below 50% 675 | -9/Materials | Self-destructed Last Messages --------------- 00652_ Overheating: Particle Cannon damaged (-12). 00652_ U-05 Engineer lays Concrete. 00652_ K-01 Serf collects debris. 00653_ Acquired 21 matter. 00653_ U-05 Engineer lays Concrete. 00655_ U-05 Engineer builds a Wall. 00656_ Power failure, Ion Engine shutdown. 00656_ K-01 Serf collects debris. 00658_ Lgt. Treads destroyed. 00660_ K-01 Serf collects debris. 00663_ U-05 Engineer lays Concrete. 00663_ Ion Engine destroyed. 00664_ K-01 Serf collects debris. 00664_ U-05 Engineer lays Concrete. 00669_ Particle Cannon destroyed. 00672_ S-10 Pest destroyed. 00673_ U-05 Engineer builds a Wall. 00674_ Sml. Storage Unit destroyed. 00675_ The unstable cave ceiling collapses. Map ----- +----------------------------------------------------+ | | | | | | | | | | | | | | | | | | | | | | | | | | | ?????????????????????????????????????????????????? | | ??????????????#######????????????????????????????? | | ?????????????? = ????????????????????????????? | | ??????????????? ????????????????????????????? | | ############?? ???????????????????????????? | | ^^^ ^+ #?????????????????????????? | | ###########?# #?????????????????????????? | | # #??????# """ """ #?????????????????????????? | | # #??????# """ """ #?????????????????????????? | | # #?###### ?"" """ #???########??????????????? | | # ### ### #???? [#??????????????? | | + # ]# = ###### #??????????????? | | ## " + ! #[% g =@% """ #??????????????? | | ?# T*# =% /u !###### """"" #??????????????? | | ?# "%# *! !%##???? """""????????????????? | | ?# ! # [ *%= * =# #???? """"?????????????????? | | ?###### ""=""" # =! ?? """?????????????????? | | ??????# " """ # +?? ?????????????????? | | ??????# " """ # #?? ????????????????? | | ??????############# # #???+###????????????????? | | ??????????????????# # ??????????????????????? | | ??????????????????? # ?????????????????????? | | ??????????????????? #? ????????????????????? | | ??????????????????? +? "%" ????????????????????? | | ??????????????????? #?? """?????????????????????? | | ??????????????????? #?? "???????????????????????? | | ??????????????????? ???? ???????????????????????? | | ??????????????????? ?????????????????????????????? | | ?????????????????????????????????????????????????? | | ?????????????????????????????????????????????????? | | ?????????????????????????????????????????????????? | | ?????????????????????????????????????????????????? | | ?????????????????????????????????????????????????? | | ?????????????????????????????????????????????????? | | ?????????????????????????????????????????????????? | | ?????????????????????????????????????????????????? | | ?????????????????????????????????????????????????? | +----------------------------------------------------+ Best States ------------- Heat Dissipation 28 Energy Generation 14 Energy Capacity 250 Matter Stores 300 Matter Capacity 300 Sight Range 16 Robot Scan Range 14 Terrain Scan Density 10 Evasion (%) 40 Recoil Reduction 2 Item Schematics ----------------- None Robot Schematics ------------------ None Fabricated ------------ Nothing Alien Tech Used ----------------- None Achievements -------------- None Challenges ------------ None Game ------ Seed SegregatorDataCleaver Manual? 0 Play Time 00:08:13 Cumulative 29.7 hours Start 2025.01.10 @ 19:28:35 End 2025.01.10 @ 19:36:08 Sessions 1 Manual Loads 0 Difficulty Rogue Special Mode None Game No. 30 Rogue 30 Adventurer 0 Explorer 0 Win Type - Total 0 Types 0/0/0/0/0/0/0/0/0 Lore% 24 Gallery% 24 Achievement% 24 Wizard Run 0 Options --------- Layout 1 ASCII 0 Keyboard 0 Movement Mouse Keybinds 0 Fullscreen 2 Font 24/Smallcaps Map View 50x35 Zoom Use 0% Tactical HUD 1 Map Filters NONE Filters NONE Steam 1 RUN: feb1c6dd-9f31-47fa-9b16-069a1306c7a8